bitfinex/quotes_ETHUSD_20260121
["timestamp","ask_amount","ask_price","bid_price","bid_amount"]
[1769026566711,0.09838485,3020.7,3018.9,3.31428685]
[1769026566905,0.09838485,3020.7,3018.9,0.00188749]
[1769026567108,0.09838485,3020.5,3018.9,0.00188749]
[1769026567515,1.00285427,3020.9,3019.2,3.31208684]
[1769026567717,0.18185196,3020.8,3019.1,0.96658461]
[1769026567913,6.61813368,3022.0,3019.7,0.96658461]
[1769026568138,0.09838485,3021.9,3019.7,0.96658461]
[1769026568338,0.09838485,3021.7,3019.7,0.96658461]
[1769026569605,3.30950489,3021.6,3019.8,6.62295516]
[1769026569824,0.09838485,3021.3,3019.4,0.96658461]
[1769026570017,0.09838485,3021.1,3019.5,3.31179453]
[1769026570520,0.09838485,3021.1,3019.4,0.96658461]
[1769026570521,0.09838485,3020.8,3019.4,0.96658461]
[1769026570750,0.09838485,3020.8,3019.5,3.31173214]
[1769026570914,0.09838485,3020.8,3019.4,0.96658461]
[1769026571120,0.09838485,3021.1,3019.7,3.31154923]
[1769026571654,0.77012407,3021.5,3019.8,0.96658461]
[1769026571826,0.09838485,3022.2,3019.8,0.96658461]
[1769026571827,3.30958523,3021.6,3019.8,0.96658461]
[1769026572149,0.09838485,3021.5,3019.8,0.96658461]
[1769026572333,0.09838485,3021.1,3019.8,0.96658461]
[1769026572739,0.09838485,3021.1,3019.3,0.96658461]
[1769026573129,3.30958523,3021.6,3019.5,0.96658461]
[1769026573330,0.09838485,3021.5,3019.5,0.96658461]
[1769026573750,0.09838485,3021.5,3019.7,0.96658461]
[1769026573751,3.30972396,3021.4,3019.7,0.96658461]
[1769026574435,0.09838485,3021.1,3019.7,0.96658461]
[1769026575030,0.09838485,3021.3,3019.7,1.39441276]
[1769026575229,3.30928585,3021.8,3019.8,0.96658461]
[1769026575454,5.49394789,3023.0,3020.4,0.97147212]
[1769026575748,5.49394789,3023.0,3019.7,0.526213]
[1769026575749,0.09838485,3022.1,3020.6,0.97147212]
[1769026575917,0.09838485,3022.6,3020.6,0.97147212]
[1769026576122,0.09838485,3022.6,3020.8,0.97147212]
[1769026576820,0.09838485,3023.0,3021.0,0.97147212]
[1769026577022,0.09838485,3023.3,3021.2,0.97147212]
[1769026577245,0.81566528,3024.2,3021.6,0.97147212]
[1769026577246,0.09838485,3023.5,3021.6,0.97147212]
[1769026577446,0.09838485,3023.7,3021.6,0.97147212]
[1769026577646,3.4056829,3023.7,3021.8,0.97147212]
[1769026577830,0.09838485,3023.3,3022.0,0.97147212]
[1769026578227,0.002,3025.0,3022.2,0.97147212]
[1769026578429,0.002,3025.0,3022.9,0.97147212]
[1769026578430,0.09838485,3024.6,3022.9,0.97147212]
[1769026578825,0.09838485,3024.2,3022.9,0.97147212]
[1769026579071,0.09838485,3024.4,3022.1,0.97147212]
[1769026579359,0.09838485,3024.0,3022.4,0.97147212]
[1769026579526,0.09838485,3023.4,3022.4,0.97147212]
[1769026579937,0.09838485,3023.4,3021.8,0.97147212]
[1769026580177,0.09838485,3023.0,3021.8,0.97147212]
[1769026580379,0.09838485,3022.4,3021.3,3.30983235]
[1769026580672,0.09838485,3022.4,3021.2,0.97147212]
[1769026580673,0.09838485,3022.2,3021.2,0.97147212]
[1769026581139,0.09838485,3022.2,3020.9,3.31018625]
[1769026581343,0.09838485,3021.6,3020.6,0.97147212]
[1769026581575,0.09838485,3021.0,3020.0,0.97147212]
[1769026581779,0.09838485,3021.2,3020.1,6.62228041]
[1769026581944,0.09838485,3021.2,3020.2,0.75937525]
[1769026582139,0.09838485,3021.0,3020.2,0.75937525]
[1769026582570,0.09838485,3021.0,3019.9,0.001]
[1769026582571,0.09838485,3020.8,3019.9,0.001]
[1769026582773,0.09838485,3021.2,3020.0,3.31125418]
[1769026583162,0.09838485,3021.0,3020.0,3.31125418]
[1769026583557,0.09838485,3021.2,3020.0,3.31125418]
[1769026584673,0.09838485,3021.2,3020.0,6.62251245]
[1769026584973,0.09838485,3021.4,3020.1,0.75949846]
[1769026585177,0.09838485,3021.6,3020.2,0.97147212]
[1769026585544,0.09838485,3022.0,3020.2,0.97147212]
[1769026585744,0.09838485,3022.4,3020.4,0.97147212]
[1769026585961,0.09838485,3022.0,3020.6,0.97147212]
[1769026586272,0.09838485,3021.9,3020.6,0.97147212]
[1769026586473,0.09838485,3022.4,3020.6,0.97147212]
[1769026586673,0.09838485,3022.4,3020.8,0.97147212]
[1769026586674,0.09838485,3022.2,3020.8,0.97147212]
[1769026586874,0.09838485,3022.0,3020.8,0.97147212]
[1769026587570,0.09838485,3022.2,3020.8,0.97147212]
[1769026587875,0.09838485,3022.4,3020.9,7.59201566]
[1769026588076,0.09838485,3022.4,3021.0,0.97147212]
[1769026588252,0.09838485,3022.2,3021.0,0.97147212]
[1769026588653,0.09838485,3022.4,3021.0,0.97147212]
[1769026589064,0.09838485,3022.0,3021.0,0.97147212]
[1769026589364,0.09838485,3022.0,3020.7,3.31038586]
[1769026589671,0.09838485,3022.2,3020.8,6.62074292]
[1769026589872,0.09838485,3022.0,3020.9,0.66207429]
[1769026590076,0.09838485,3022.2,3020.9,6.62048581]
[1769026590275,0.09838485,3022.0,3020.9,6.62048581]
[1769026590477,0.09838485,3021.8,3020.9,3.31021404]
[1769026590851,3.30832949,3022.7,3021.0,0.97147212]
[1769026591043,0.09838485,3022.0,3021.0,0.97147212]
[1769026591247,0.09838485,3022.0,3021.1,0.75919579]
[1769026592179,0.09838485,3022.2,3021.2,6.61988612]
[1769026592482,0.09838485,3022.6,3021.2,7.59135824]
[1769026592680,0.09838485,3023.0,3021.3,0.97147212]
[1769026592882,0.09838485,3023.4,3021.7,0.97147212]
[1769026593067,0.34065413,3024.5,3021.9,0.97147212]
[1769026593271,0.10038485,3024.7,3021.9,0.97147212]
[1769026593449,0.09838485,3023.6,3021.9,0.97147212]
[1769026593763,0.09838485,3024.1,3021.9,0.97147212]
[1769026593968,3.40519815,3024.1,3022.1,0.97147212]
[1769026594164,3.40520328,3024.1,3022.3,0.97147212]
[1769026594364,3.30690472,3024.0,3022.3,0.97147212]
[1769026594565,0.09838485,3023.3,3022.3,0.97147212]
[1769026594766,0.09838485,3023.2,3022.0,3.30906684]
[1769026594972,0.09838485,3023.4,3022.1,0.97147212]
[1769026595166,3.40548188,3023.8,3022.1,0.97147212]
[1769026595167,0.09838485,3023.8,3022.1,0.97147212]
[1769026595500,0.09838485,3023.6,3022.3,0.97147212]
[1769026595683,0.10038485,3023.5,3022.3,0.97147212]
[1769026596200,0.10038485,3023.5,3022.4,6.6172578]
[1769026597079,0.10038485,3023.5,3022.3,0.97147212]
[1769026597080,0.09838485,3023.3,3022.3,4.28016445]
[1769026597284,0.09838485,3023.1,3022.0,3.30904872]
[1769026597485,0.09838485,3023.1,3021.9,0.547]
[1769026597486,0.09838485,3022.8,3021.9,0.547]
[1769026597660,0.09838485,3022.8,3021.9,3.85616186]
[1769026597866,0.09838485,3023.1,3021.9,1.36070124]
[1769026598076,0.09838485,3022.9,3021.9,0.547]
[1769026598287,0.09838485,3022.7,3021.9,0.547]
[1769026598486,0.09838485,3022.7,3021.9,3.85616693]
[1769026598668,0.09838485,3022.7,3021.9,0.547]
[1769026598988,0.09838485,3022.7,3021.9,3.85614836]
[1769026599201,0.09838485,3022.7,3021.9,0.547]
[1769026599495,0.09838485,3022.7,3021.3,0.001]
[1769026599496,0.09838485,3022.1,3021.3,0.001]
[1769026599654,0.09838485,3022.1,3021.3,3.31076872]
[1769026600304,0.09838485,3021.9,3021.3,0.001]
[1769026600474,0.09838485,3022.1,3021.3,0.001]
[1769026601189,0.09838485,3021.5,3021.3,0.001]
[1769026601384,0.09838485,3021.5,3020.5,3.310661]
[1769026601584,0.09838485,3021.5,3020.4,3.85780337]
[1769026601585,0.09838485,3020.9,3019.6,0.97147212]
[1769026601882,0.09838485,3021.7,3020.2,0.97147212]
[1769026602083,0.09838485,3021.5,3020.2,0.97147212]
[1769026602284,0.09838485,3021.7,3020.3,10.90426023]
[1769026602500,0.09838485,3021.5,3020.4,0.97147212]
[1769026602674,0.09838485,3021.5,3020.3,9.93278811]
[1769026602675,0.09838485,3021.5,3020.5,2.06189814]
[1769026602880,0.09838485,3021.3,3020.5,2.06189814]
[1769026603490,0.09838485,3021.2,3020.2,3.31100867]
[1769026603798,0.09838485,3021.2,3020.2,6.62204767]
[1769026604002,0.09838485,3021.2,3020.2,7.59351979]
[1769026604176,0.09838485,3021.5,3020.2,7.59351979]
[1769026604377,0.09838485,3021.3,3020.4,6.6216395]
[1769026604577,0.09838485,3021.3,3020.3,5.04172813]
[1769026604578,0.09838485,3021.1,3020.3,5.04172813]
[1769026604804,0.09838485,3021.1,3020.3,3.31090403]
[1769026605198,0.09838485,3021.1,3020.2,3.31100963]
[1769026605508,0.09838485,3020.9,3020.3,3.31091076]
[1769026605709,0.09838485,3020.9,3020.5,0.001]
[1769026606278,0.09838485,3020.6,3019.2,0.94885082]
[1769026606471,0.09838485,3020.6,3019.4,0.94885082]
[1769026606704,0.09838485,3020.9,3019.4,0.94885082]
[1769026607591,0.09838485,3020.7,3019.4,0.94885082]
[1769026607886,0.09838485,3020.7,3019.6,0.94885082]
[1769026608086,0.09838485,3021.3,3019.6,0.94885082]
[1769026608309,0.09838485,3021.1,3019.6,0.94885082]
[1769026608482,0.09838485,3021.3,3019.8,0.94885082]
[1769026608685,0.09838485,3021.9,3019.9,0.2335703]
[1769026608894,0.09838485,3021.9,3020.2,0.94885082]
[1769026609093,0.09838485,3021.7,3020.4,0.94885082]
[1769026609296,0.09838485,3022.1,3020.4,0.95185082]
[1769026609507,3.30805778,3023.0,3020.8,0.94885082]
[1769026609706,0.09838485,3022.5,3020.8,0.94885082]
[1769026610223,0.09838485,3021.8,3020.8,1.49585082]
[1769026610592,0.09838485,3021.8,3020.9,3.31027177]
[1769026610939,0.09838485,3021.6,3020.9,4.06721388]
[1769026611217,0.09838485,3021.6,3020.9,3.31027177]
[1769026611729,0.09838485,3021.4,3020.4,0.003]
[1769026611888,0.09838485,3021.2,3020.4,3.31379708]
[1769026612089,0.09838485,3021.2,3020.5,3.31070944]
[1769026612386,0.09838485,3022.4,3020.6,1.49585082]
[1769026612736,0.09838485,3022.8,3021.0,0.94885082]
[1769026612889,0.09838485,3022.6,3021.0,0.94885082]
[1769026613084,0.09838485,3022.8,3021.0,0.94885082]
[1769026613794,0.09838485,3023.1,3021.0,0.94885082]
[1769026613988,0.002,3023.2,3021.4,0.94885082]
[1769026614392,0.09838485,3022.5,3021.4,0.94885082]
[1769026614594,0.09838485,3022.3,3021.4,0.94885082]
[1769026614798,0.09838485,3022.5,3021.4,3.30970388]
[1769026614997,0.09838485,3022.5,3021.4,7.00509823]
[1769026616133,0.09838485,3022.7,3021.5,0.94885082]
[1769026616293,4.32026065,3024.1,3021.5,0.94885082]
[1769026616615,0.09838485,3023.1,3021.7,0.94885082]
[1769026617924,0.09838485,3022.9,3021.7,0.94885082]
[1769026618084,0.09838485,3022.9,3021.8,0.75678606]
[1769026618290,0.09838485,3022.9,3021.8,1.70563688]
[1769026618821,0.002,3022.2,3021.9,6.61835268]
[1769026619736,0.002,3022.2,3021.8,3.30925673]
[1769026619889,0.09838485,3022.9,3021.8,6.61854258]
[1769026620093,0.09838485,3023.1,3021.9,0.95004105]
[1769026620291,0.09838485,3022.8,3021.9,0.95004105]
[1769026620813,0.09838485,3022.6,3021.8,0.66185426]
[1769026621011,0.09838485,3022.6,3021.2,0.001]
[1769026621012,0.09838485,3022.0,3021.2,0.001]
[1769026621200,0.09838485,3022.0,3021.3,3.30982506]
[1769026621403,0.09838485,3022.0,3021.3,3.30981253]
[1769026621625,0.09838485,3022.0,3021.4,3.30965857]
[1769026621786,6.71478795,3022.8,3021.6,0.95004105]
[1769026621787,0.09838485,3022.8,3021.6,0.95004105]
[1769026621992,0.09838485,3022.6,3021.6,0.95004105]
[1769026622225,0.09838485,3022.4,3021.6,0.95004105]
[1769026622524,0.09838485,3022.4,3021.7,3.30938493]
[1769026622728,0.09838485,3022.4,3021.2,0.95104105]
[1769026622895,0.09838485,3022.4,3021.3,6.61965145]
[1769026623220,0.09838485,3022.4,3021.2,0.95104105]
[1769026623221,0.09838485,3022.0,3021.2,3.31093542]
[1769026623433,0.09838485,3021.6,3021.2,0.001]
[1769026623633,0.09838485,3021.4,3021.2,0.001]
[1769026623794,0.09838485,3021.6,3021.2,0.001]
[1769026624326,0.09838485,3022.5,3021.3,0.95004105]
[1769026624495,0.09838485,3022.3,3021.3,1.70713122]
[1769026624923,0.09838485,3022.1,3021.3,5.01692897]
[1769026625092,0.09838485,3022.1,3021.3,4.06688792]
[1769026625298,0.09838485,3022.3,3021.3,7.37672143]
[1769026625494,3.30983266,3023.2,3021.4,0.95004105]
[1769026625495,0.002,3023.2,3021.4,0.95004105]
[1769026625705,0.002,3023.2,3021.6,0.95004105]
[1769026625892,0.09838485,3023.1,3021.6,0.95004105]
[1769026626091,0.09838485,3023.1,3021.7,1.49704105]
[1769026626337,0.002,3023.2,3021.8,0.95004105]
[1769026626896,0.002,3023.2,3022.0,0.95004105]
[1769026627094,0.002,3023.2,3022.2,0.95004105]
[1769026628728,0.09838485,3022.9,3021.9,6.61835268]
[1769026629139,0.002,3023.2,3022.0,0.95004105]
[1769026630200,0.002,3023.5,3022.0,0.95004105]
[1769026631017,0.09838485,3024.2,3022.2,0.95004105]
[1769026631201,0.09838485,3023.6,3022.4,0.95004105]
[1769026631397,0.09838485,3023.6,3022.4,1.49704105]
[1769026631598,0.09838485,3024.4,3022.5,0.95004105]
[1769026631829,0.09838485,3024.2,3022.5,0.95004105]
[1769026632195,0.002,3023.2,3022.5,0.95004105]
[1769026632396,0.09838485,3024.4,3022.7,0.95004105]
[1769026632599,0.09838485,3024.2,3022.7,0.95004105]
[1769026632801,0.09838485,3024.0,3022.7,0.95004105]
[1769026633000,0.09838485,3024.0,3022.8,7.56642321]
[1769026633202,0.09838485,3024.4,3023.0,0.95004105]
[1769026633428,0.002,3024.5,3023.0,0.95004105]
[1769026634201,0.09838485,3024.2,3022.9,0.75664232]
[1769026634401,0.09838485,3024.0,3023.0,0.547]
[1769026634632,0.09838485,3024.4,3023.0,0.547]
[1769026634807,0.09838485,3024.2,3023.0,0.547]
[1769026635003,0.09838485,3023.7,3022.6,3.30834723]
[1769026635208,0.09838485,3023.3,3022.4,4.25860839]
[1769026635408,0.09838485,3023.5,3022.6,3.30838101]
[1769026635609,0.09838485,3023.5,3022.7,3.30829326]
[1769026635807,0.09838485,3023.5,3022.8,3.30818081]
[1769026636008,0.09838485,3023.5,3022.7,3.30827055]
[1769026636310,0.09838485,3023.3,3022.5,3.3084262]
[1769026636631,0.09838485,3024.0,3022.5,0.85946717]
[1769026636838,0.09838485,3023.8,3023.0,3.30796317]
[1769026637039,0.09838485,3023.6,3022.6,3.3083489]
[1769026637213,0.09838485,3023.6,3022.6,6.61675887]
[1769026637405,0.09838485,3023.8,3022.6,6.61675887]
[1769026637842,0.09838485,3023.8,3022.6,7.55407308]
[1769026638025,0.34054252,3023.7,3022.6,7.55407308]
[1769026638334,0.09838485,3024.2,3022.7,0.93731421]
[1769026638537,0.09838485,3023.8,3022.8,0.547]
[1769026638729,0.09838485,3024.0,3022.8,0.547]
[1769026638908,0.09838485,3024.0,3022.8,1.48431421]
[1769026639108,0.09838485,3024.0,3022.9,6.61616328]
[1769026639316,0.09838485,3024.2,3022.9,6.61616328]
[1769026639515,0.09838485,3024.0,3022.9,6.61616328]
[1769026639721,0.09838485,3023.6,3022.8,0.547]
[1769026640035,0.09838485,3023.8,3022.8,3.85518491]
[1769026640239,0.09838485,3023.6,3022.8,3.85518491]
[1769026641135,0.09838485,3023.8,3022.8,7.16337599]
[1769026641713,0.09838485,3023.8,3022.8,3.85518491]
[1769026641908,0.09838485,3023.6,3022.8,0.547]
[1769026642214,0.09838485,3023.6,3022.0,3.30999966]
[1769026642215,0.09838485,3022.8,3022.0,3.30999966]
[1769026642610,0.09838485,3022.4,3021.5,0.547]
[1769026642947,0.09838485,3022.2,3021.5,0.547]
[1769026643824,3.40688918,3022.6,3021.5,0.547]
[1769026644020,3.30663154,3024.3,3021.6,0.93731421]
[1769026644021,0.09838485,3023.3,3021.6,0.93731421]
[1769026644962,0.10038485,3023.5,3021.6,0.93731421]
[1769026645146,0.09838485,3023.3,3021.8,0.93731421]
[1769026645470,0.10038485,3023.5,3021.8,0.93731421]
[1769026645771,0.002,3023.5,3022.0,0.93731421]
[1769026646749,0.09838485,3023.4,3022.0,0.93731421]
[1769026646954,0.09838485,3023.4,3022.1,0.547]
[1769026647156,0.09838485,3023.2,3022.2,3.30884785]
[1769026648332,0.09838485,3023.1,3022.2,3.30884785]
[1769026648546,0.002,3023.5,3022.2,6.6176957]
[1769026648745,0.09838485,3023.4,3022.3,0.93731421]
[1769026649066,0.002,3023.5,3022.3,0.93731421]
[1769026649266,0.002,3023.5,3022.5,6.61703886]
[1769026649426,0.002,3023.5,3022.5,3.30851943]
[1769026649634,0.002,3023.5,3022.5,6.61703886]
[1769026649847,0.002,3023.5,3022.6,0.93731421]
[1769026650247,0.002,3023.5,3022.5,3.30851943]
[1769026650248,0.09838485,3023.4,3022.5,3.30851943]
[1769026650441,0.002,3023.5,3022.5,3.30851943]
[1769026650750,0.002,3023.5,3022.5,6.9478908]
[1769026651957,0.002,3023.5,3022.6,0.93731421]
[1769026653882,0.002,3023.8,3022.8,0.93731421]
[1769026655034,0.002,3023.8,3022.9,0.547]
[1769026655581,0.09838485,3023.7,3022.7,3.85530052]
[1769026655734,0.09838485,3023.7,3022.6,0.547]
[1769026656151,0.43912803,3023.7,3022.6,0.547]
[1769026656694,0.34074318,3023.7,3022.6,0.547]
[1769026656999,0.09838485,3023.4,3022.4,6.6172578]
[1769026657197,0.09838485,3023.6,3022.4,7.1642578]
[1769026657347,0.09838485,3023.6,3022.4,11.41020091]
[1769026657348,0.002,3023.5,3022.4,11.41020091]
[1769026657843,0.002,3023.5,3022.6,6.61681994]
[1769026658246,0.002,3023.5,3022.6,7.55413415]
[1769026659062,0.002,3023.5,3022.6,10.86254412]
[1769026659279,0.002,3023.5,3022.6,7.55413415]
[1769026659946,0.002,3023.5,3022.7,1.48431421]
[1769026660176,0.002,3023.5,3022.9,0.93731421]
[1769026661244,1e-08,3023.8,3022.9,0.93731421]
[1769026661752,1e-08,3023.8,3023.0,0.547]
[1769026661951,1e-08,3023.8,3023.1,0.547]
[1769026662182,1e-08,3023.8,3023.1,1.48431421]
[1769026662367,1e-08,3023.8,3023.2,2.07813729]
[1769026662570,1e-08,3023.8,3023.3,0.93731421]
[1769026662782,0.002,3024.5,3023.3,0.93731421]
[1769026663156,0.002,3024.8,3023.3,0.93731421]
[1769026664055,0.002,3024.8,3023.5,0.93731421]
[1769026665383,0.002,3024.8,3023.7,0.93731421]
[1769026665994,0.002,3024.8,3023.8,3.85407029]
[1769026666205,0.002,3024.8,3023.8,0.547]
[1769026666498,0.09838485,3024.7,3023.8,0.547]
[1769026667099,0.09838485,3024.7,3023.8,3.85408088]
[1769026667882,0.09838485,3024.7,3023.8,0.547]
[1769026668256,0.09838485,3024.7,3023.8,3.85409411]
[1769026668477,0.002,3024.8,3023.8,7.54660055]
[1769026668700,0.002,3024.8,3023.9,0.93986761]
[1769026670019,0.002,3024.4,3023.9,0.93986761]
[1769026670200,0.002,3024.4,3023.7,3.85415343]
[1769026670366,0.002,3024.4,3023.7,7.16135983]
[1769026670567,0.002,3024.4,3023.7,7.87749581]
[1769026670879,0.002,3024.7,3023.8,0.93986761]
[1769026671294,0.09838485,3024.2,3023.2,3.30774529]
[1769026671496,0.09838485,3024.2,3023.3,3.30761869]
[1769026671695,0.09838485,3024.2,3023.4,3.30753311]
[1769026672277,0.002,3024.7,3023.5,0.93986761]
[1769026673415,0.09838485,3024.6,3023.5,0.93986761]
[1769026673611,0.09838485,3024.6,3023.4,0.66152752]
[1769026673612,0.09838485,3024.2,3023.2,3.30772361]
[1769026673819,0.09838485,3023.8,3022.9,0.548]
[1769026674015,0.09838485,3023.8,3022.2,3.30879623]
[1769026674016,0.09838485,3023.3,3022.2,0.547]
[1769026674311,0.09838485,3023.3,3022.3,6.61746598]
[1769026674610,0.09838485,3023.3,3022.3,7.33391258]
[1769026675327,3.30700436,3023.9,3022.3,7.33391258]
[1769026675328,6.61266324,3024.5,3022.4,0.93986761]
[1769026675496,0.09838485,3024.0,3022.4,0.93986761]
[1769026676306,0.09838485,3024.0,3022.5,6.61703886]
[1769026676518,0.09838485,3023.8,3022.6,0.93986761]
[1769026676833,0.09838485,3024.0,3022.8,0.93986761]
[1769026677117,3.30814914,3024.7,3022.8,0.93986761]
[1769026677118,3.30818635,3024.7,3022.8,0.93986761]
[1769026677280,0.002,3024.7,3022.8,0.93986761]
[1769026677733,0.09838485,3024.4,3022.8,0.93986761]
[1769026678483,0.09838485,3024.4,3023.0,0.93986761]
[1769026678977,0.10038485,3024.7,3023.0,0.93986761]
[1769026679186,0.10038485,3024.7,3023.2,0.93986761]
[1769026679405,0.10038485,3024.7,3023.4,0.98087785]
[1769026679586,0.09838485,3024.6,3023.4,0.98087785]
[1769026679791,0.002,3024.7,3023.4,0.98087785]
[1769026680495,0.002,3024.7,3023.6,0.98087785]
[1769026680681,0.002,3024.7,3023.6,1.7365685]
[1769026680875,0.002,3024.7,3023.7,0.98087785]
[1769026682014,0.002,3024.7,3023.7,1.52787785]
[1769026682391,0.09838485,3024.6,3023.7,3.85414349]
[1769026682575,0.09838485,3024.4,3023.7,0.547]
[1769026682779,0.44868565,3024.4,3023.7,0.547]
[1769026683001,0.09838485,3024.4,3023.7,0.547]
[1769026683375,0.002,3024.7,3023.7,0.547]
[1769026683584,0.09838485,3024.5,3023.7,0.547]
[1769026683807,0.09838485,3024.5,3023.7,3.85419448]
[1769026684005,0.09838485,3024.6,3023.7,3.85419448]
[1769026684205,0.09838485,3024.6,3023.7,0.547]
[1769026684409,0.09838485,3024.4,3023.3,4.28945017]
[1769026684589,0.09838485,3023.7,3023.3,0.001]
[1769026684909,0.34047165,3024.3,3023.3,3.30857263]
[1769026685506,0.34047165,3024.3,3023.4,3.30750744]
[1769026685809,0.002,3024.7,3023.7,6.61440359]
[1769026686025,0.002,3024.7,3023.6,3.30724265]
[1769026686188,0.002,3024.7,3023.3,0.001]
[1769026686189,0.09838485,3024.0,3023.3,0.001]
[1769026686707,0.09838485,3023.8,3023.3,0.001]
[1769026687094,0.09838485,3024.1,3023.3,0.001]
[1769026687405,0.09838485,3023.9,3023.3,0.001]
[1769026687606,0.09838485,3023.6,3022.2,0.98087785]
[1769026687807,0.09838485,3023.4,3022.2,0.98087785]
[1769026688038,0.09838485,3023.2,3022.2,0.98087785]
[1769026688317,0.09838485,3023.0,3021.8,0.98087785]
[1769026688483,0.09838485,3023.0,3021.9,3.3091651]
[1769026688685,0.09838485,3023.0,3022.0,1.40988215]
[1769026688905,0.09838485,3023.2,3022.0,0.98087785]
[1769026689108,0.09838485,3023.0,3022.0,0.98087785]
[1769026689720,0.09838485,3022.5,3021.5,0.98087785]
[1769026690318,0.09838485,3022.0,3021.2,0.001]
[1769026690489,0.09838485,3022.3,3021.2,0.001]
[1769026690684,0.448921,3022.3,3021.2,0.001]
[1769026690911,0.09838485,3022.1,3021.2,0.001]
[1769026691422,0.09838485,3021.9,3021.2,0.001]
[1769026692624,0.09838485,3021.7,3021.2,0.001]
[1769026692821,0.09838485,3021.7,3020.0,0.98087785]
[1769026692822,0.09838485,3021.4,3020.0,0.98087785]
[1769026693203,0.09838485,3021.2,3020.4,3.31377898]
[1769026693398,0.09838485,3021.4,3020.5,3.31070668]
[1769026693598,0.09838485,3021.7,3020.5,3.31070668]
[1769026693788,0.35059775,3021.7,3020.6,0.98087785]
[1769026693995,0.47443498,3022.8,3020.6,0.98087785]
[1769026693996,0.09838485,3022.2,3020.6,0.98087785]
[1769026694216,0.09838485,3022.0,3021.8,0.001]
[1769026694400,0.09838485,3022.0,3020.6,0.98087785]
[1769026694591,0.09838485,3022.2,3020.8,0.98087785]
[1769026694793,0.09838485,3021.8,3020.8,0.98087785]
[1769026695010,0.09838485,3021.8,3020.4,3.31376527]
[1769026695011,0.09838485,3021.2,3020.4,0.003]
[1769026696725,0.09838485,3021.4,3020.4,3.31381975]
[1769026696924,0.09838485,3021.2,3020.4,3.31381975]
[1769026697299,0.09838485,3020.8,3020.4,0.003]
[1769026697496,0.09838485,3020.6,3019.7,0.547]
[1769026697696,0.09838485,3020.0,3019.0,3.31231145]
[1769026697926,0.09838485,3020.0,3018.9,4.25902506]
[1769026698143,0.09838485,3020.0,3018.9,0.00188749]
[1769026698144,0.09838485,3019.8,3018.9,0.00188749]
[1769026698434,0.09838485,3020.3,3018.9,0.00188749]
[1769026698435,0.09838485,3020.3,3019.3,3.31202248]
[1769026698593,0.09838485,3020.3,3019.0,6.62471016]
[1769026698795,0.09838485,3020.3,3019.1,1.60737568]
[1769026699009,0.09838485,3020.1,3019.1,1.60737568]
[1769026699238,0.09838485,3020.1,3019.1,0.94471591]
[1769026699402,0.09838485,3020.3,3019.1,0.94471591]
[1769026699603,0.09838485,3020.1,3019.1,0.94471591]
[1769026700419,0.09838485,3019.9,3019.1,0.94471591]
[1769026700605,0.09838485,3019.5,3018.9,0.00188749]
[1769026700924,0.09838485,3018.7,3018.0,0.003]
[1769026701098,0.09838485,3018.7,3018.0,0.00200287]
[1769026701299,0.09838485,3019.0,3018.0,0.00200287]
[1769026701510,0.09838485,3018.9,3018.0,3.31538995]
[1769026701731,0.09838485,3018.9,3018.0,7.05485315]
[1769026701951,0.09838485,3019.2,3018.0,7.05485315]
[1769026701952,0.09838485,3019.3,3018.1,0.94471591]
[1769026702115,0.09838485,3019.1,3018.1,0.94471591]
[1769026702313,0.09838485,3019.7,3018.2,0.94471591]
[1769026702500,0.09838485,3019.5,3018.2,0.94471591]
[1769026702835,0.09838485,3019.5,3018.3,4.25783919]
[1769026703342,0.09838485,3019.5,3018.3,7.57096247]
[1769026703645,0.09838485,3020.1,3018.5,0.94471591]
[1769026703646,0.09838485,3019.8,3018.5,0.94471591]
[1769026703936,0.09838485,3020.3,3018.5,0.94471591]
[1769026704238,0.09838485,3021.6,3018.9,0.94471591]
[1769026704406,0.09838485,3020.8,3018.9,0.94471591]
[1769026704596,0.09838485,3021.4,3018.9,0.94471591]
[1769026704797,0.09838485,3021.4,3018.5,0.2335703]
[1769026704798,0.09838485,3020.8,3019.1,0.94471591]
[1769026704997,0.09838485,3020.8,3019.3,0.94471591]
[1769026705332,0.09838485,3020.6,3019.3,0.94471591]
[1769026705826,0.09838485,3019.9,3018.9,3.31244015]
[1769026706035,0.09838485,3019.9,3018.9,3.31246279]
[1769026706036,0.09838485,3019.7,3018.9,3.31246279]
[1769026706194,0.09838485,3019.7,3018.8,0.94471591]
[1769026706395,0.09838485,3019.7,3018.9,3.31246259]
[1769026707137,0.09838485,3019.7,3018.8,4.25725649]
[1769026707553,0.09838485,3019.7,3018.8,7.56983102]
[1769026707847,0.09838485,3019.3,3018.3,0.94471591]
[1769026707998,0.09838485,3019.3,3018.5,3.31285888]
[1769026708199,0.09838485,3019.1,3018.3,0.94471591]
[1769026708851,0.09838485,3019.5,3018.6,4.25750831]
[1769026709049,0.09838485,3019.5,3018.6,0.94471591]
[1769026709225,0.09838485,3019.3,3018.3,3.31311971]
[1769026709433,0.09838485,3019.1,3018.5,3.31282508]
[1769026709631,0.09838485,3019.1,3018.2,3.31321638]
[1769026709860,0.09838485,3019.1,3018.1,4.25798099]
[1769026710048,0.09838485,3018.8,3018.0,0.00200287]
[1769026710224,0.09838485,3018.6,3018.0,0.00200287]
[1769026710821,0.09838485,3018.3,3018.0,0.00200287]
[1769026711022,0.09838485,3018.1,3017.2,3.31433053]
[1769026711238,0.09838485,3018.1,3016.7,7.37846521]
[1769026711239,0.09838485,3017.5,3016.7,7.37846521]
[1769026711437,0.09838485,3017.7,3016.8,0.40636402]
[1769026711838,0.09838485,3017.5,3016.7,4.06356173]
[1769026712249,0.09838485,3017.4,3016.8,0.94471591]
[1769026712450,0.09838485,3017.2,3016.7,0.74872697]
[1769026712655,0.09838485,3017.0,3016.7,0.74872697]
[1769026713152,0.09838485,3017.2,3016.3,0.94471591]
[1769026713525,0.09838485,3017.4,3016.7,3.31486547]
[1769026713744,0.09838485,3017.7,3016.8,0.94471591]
[1769026713973,0.09838485,3017.5,3016.8,0.94471591]
[1769026714137,0.09838485,3017.7,3016.8,1.7021621]
[1769026714339,0.09838485,3018.1,3016.8,0.94471591]
[1769026714726,0.09838485,3017.9,3016.8,0.94471591]
[1769026714952,0.09838485,3017.7,3017.0,0.94471591]
[1769026715226,0.09838485,3017.5,3016.9,3.31466074]
[1769026716034,0.09838485,3017.3,3016.5,3.31503751]
[1769026716260,3.31356241,3017.9,3015.8,3.31581396]
[1769026716585,0.09838485,3019.7,3015.8,3.31581396]
[1769026716586,0.09838485,3019.4,3017.1,0.94471591]
[1769026716860,0.09838485,3019.4,3017.3,0.94471591]
[1769026716861,0.09838485,3018.1,3017.3,0.94471591]
[1769026717060,0.09838485,3018.9,3017.4,0.94471591]
[1769026717358,0.09838485,3019.5,3017.6,0.94471591]
[1769026717560,3.40971882,3020.0,3017.6,0.94471591]